lending/lending_fUSD_20260124
["ID","MTS","AMOUNT","RATE_DAILY","PERIOD"]
[403184654,1769254945485,151.0,0.00012078,2]
[403184655,1769254945927,151.0,0.00012078,2]
[403184656,1769254946693,263.96733986,0.00011978,2]
[403184657,1769254948799,151.0,0.00012078,2]
[403184658,1769254949071,500.0,0.00012078,2]
[403184659,1769254949424,151.0,0.00012078,2]
[403184660,1769254950048,151.0,0.00012078,2]
[403184661,1769254950665,151.0,0.00012078,2]
[403184662,1769254950907,2578.59488616,0.00011978,2]
[403184663,1769254950929,6549.91323172,0.00011978,2]
[403184664,1769254951477,151.0,0.00012078,2]
[403184665,1769254951526,500.0,0.00012078,2]
[403184666,1769254951875,151.0,0.00012078,2]
[403184667,1769254952069,500.0,0.00012078,2]
[403184668,1769254952473,151.0,0.00012078,2]
[403184669,1769254953068,151.0,0.00012078,2]
[403184670,1769254954209,151.0,0.00012078,2]
[403184671,1769254954874,151.0,0.00012078,2]
[403184672,1769254955949,151.0,0.00012078,2]
[403184673,1769254956852,151.0,0.00012078,2]
[403184674,1769254956976,151.0,0.00012078,2]
[403184675,1769254957138,-2199.01104418,0.00012078,2]
[403184676,1769254960057,-151.0,0.00012078,2]
[403184677,1769254960089,-9698.01,0.00012078,2]
[403184678,1769254960162,-10000.01,0.00012078,2]
[403184679,1769254960303,-10000.01,0.00012078,2]
[403184680,1769254960438,-10000.01,0.00012078,2]
[403184681,1769254960571,-10000.01,0.00012078,2]
[403184682,1769254960686,-10000.01,0.00012078,2]
[403184683,1769254960836,-10000.01,0.00012078,2]
[403184684,1769254960964,-10000.01,0.00012078,2]
[403184685,1769254961067,-10000.01,0.00012078,2]
[403184686,1769254963006,-10000.01,0.00012078,2]
[403184687,1769254987524,1790.613917,7.945e-05,2]
[403184688,1769255017783,500.0,0.00012988,3]
[403184690,1769255070283,-178.73972699,0.00011917,2]
[403184691,1769255072695,-307.27331121,0.00011917,2]
[403184692,1769255074174,-178.71893,0.00011917,2]
[403184693,1769255075856,-240.25067479,0.00011917,2]
[403184695,1769255174286,-4765.401808,0.00011917,2]
[403184696,1769255174311,-469.206384,0.00011917,2]
[403184697,1769255178309,-300.0,0.00011976,2]
[403184698,1769255178339,-300.0,0.00011977,2]
[403184699,1769255178370,-1200.0,0.00011977,2]
[403184700,1769255178400,-300.0,0.00011977,2]
[403184701,1769255178429,-300.0,0.00011977,2]
[403184702,1769255178531,-5200.01,0.00011978,2]
[403184703,1769255183347,-1518.3286,0.00011978,2]
[403184704,1769255183377,-237.0302,0.00011978,2]
[403184705,1769255183406,-1265.0536,0.00011978,2]
[403184706,1769255183497,-3959.1852,0.00011978,2]
[403184707,1769255217075,508.0,0.000145,4]
[403184710,1769255278502,-167.56639458,0.00011878,2]
[403184711,1769255293683,-159.47121487,0.00011977,2]
[403184712,1769255309184,-300.0,0.00011977,2]
[403184713,1769255309211,-150.0,0.00011977,2]
[403184714,1769255309238,-459.0,0.00011977,2]
[403184715,1769255309265,-300.0,0.00011977,2]
[403184716,1769255309337,-7582.01,0.00011978,2]
[403184717,1769255309384,-10000.01,0.00011978,2]
[403184718,1769255309522,-10000.01,0.00011978,2]
[403184719,1769255309664,-4139.29,0.00011978,2]
[403184720,1769255309685,-1721.43,0.00011978,2]
[403184721,1769255309801,-3145.221,0.00011978,2]
[403184722,1769255309829,-250.0,0.00011978,2]
[403184723,1769255309875,-3209.568,0.00011978,2]
[403184724,1769255309921,-1503.83686872,0.00011978,2]
[403184725,1769255309948,-518.09313507,0.00011978,2]
[403184726,1769255309977,-722.32115014,0.00011978,2]
[403184727,1769255310047,-4511.50769214,0.00011978,2]
[403184728,1769255310083,-167.56639458,0.00011978,2]
[403184729,1769255310114,-300.0,0.00011997,2]
[403184730,1769255310164,-9064.87721084,0.00012059,2]
[403184731,1769255310205,-10000.01,0.00012059,2]
[403184732,1769255310352,-2318.81080104,0.00012059,2]
[403184733,1769255310377,-5362.38839792,0.00012059,2]
[403184734,1769255312190,-237.0302,0.00011978,2]
[403184735,1769255312222,-500.0,0.00012078,2]
[403184736,1769255312252,-200.0,0.00012078,2]
[403184737,1769255312285,-334.33697893,0.00012078,2]
[403184738,1769255312317,-500.0,0.00012078,2]
[403184739,1769255312348,-500.0,0.00012078,2]
[403184740,1769255312379,-500.0,0.00012078,2]
[403184741,1769255312409,-500.0,0.00012078,2]
[403184742,1769255312440,-500.0,0.00012078,2]
[403184743,1769255312472,-500.0,0.00012078,2]
[403184744,1769255312504,-500.0,0.00012078,2]
[403184745,1769255312565,-500.0,0.00012078,2]
[403184746,1769255312596,-500.0,0.00012078,2]
[403184747,1769255312629,-500.0,0.00012078,2]
[403184748,1769255312662,-500.0,0.00012078,2]
[403184749,1769255312694,-500.0,0.00012078,2]
[403184750,1769255312728,-500.0,0.00012078,2]
[403184751,1769255312759,-500.0,0.00012078,2]
[403184752,1769255312793,-500.0,0.00012078,2]
[403184753,1769255312823,-500.0,0.00012078,2]
[403184754,1769255312853,-500.0,0.00012078,2]
[403184755,1769255313338,-500.0,0.00012078,2]
[403184756,1769255313363,-0.01,0.00012078,2]
[403184757,1769255315203,-499.99,0.00012078,2]
[403184758,1769255315246,-418.20744865,0.00012078,2]
[403184759,1769255315279,-200.0,0.00012078,2]
[403184760,1769255315312,-151.0,0.00012078,2]
[403184761,1769255315344,-151.0,0.00012078,2]
[403184762,1769255315377,-151.0,0.00012078,2]
[403184763,1769255315410,-151.0,0.00012078,2]
[403184764,1769255315442,-151.0,0.00012078,2]
[403184765,1769255315474,-151.0,0.00012078,2]
[403184766,1769255315507,-151.0,0.00012078,2]
[403184767,1769255315539,-151.0,0.00012078,2]
[403184768,1769255315572,-151.0,0.00012078,2]
[403184769,1769255315605,-151.0,0.00012078,2]
[403184770,1769255315644,-151.0,0.00012078,2]
[403184771,1769255316176,-4441.6151027,0.00012078,2]
[403184772,1769255316202,-10000.01,0.00012078,2]
[403184773,1769255316250,-10000.01,0.00012078,2]
[403184774,1769255316267,-10000.01,0.00012078,2]
[403184775,1769255316293,-10000.01,0.00012078,2]
[403184776,1769255316313,-10000.01,0.00012078,2]
[403184777,1769255316328,-10000.01,0.00012078,2]
[403184778,1769255316345,-10000.01,0.00012078,2]
[403184779,1769255337129,9793.17965029,0.00011978,2]
[403184780,1769255341269,206.83034971,0.00012077,2]
[403184781,1769255341294,93.16965029,0.00012077,2]
[403184782,1769255349520,350.60218056,0.00011978,2]
[403184783,1769255352139,-5064.86687,0.00012078,2]
[403184784,1769255371622,9556.23816915,0.00011878,2]
[403184785,1769255371648,10000.01,0.00011878,2]
[403184786,1769255371674,10000.01,0.00011878,2]
[403184787,1769255371699,10000.01,0.00011878,2]
[403184788,1769255371724,10000.01,0.00011878,2]
[403184789,1769255371747,10000.01,0.00011878,2]
[403184790,1769255371772,10000.01,0.00011878,2]
[403184791,1769255371796,10000.01,0.00011878,2]
[403184792,1769255371820,10000.01,0.00011878,2]
[403184793,1769255401283,1200.0,0.00011877,2]
[403184794,1769255401436,300.0,0.00011877,2]
[403184797,1769255431992,-699.36702806,0.00011878,2]
[403184800,1769255432004,-2491.59768231,0.00011878,2]
[403184802,1769255432016,-1940.62432845,0.00011878,2]
[403184806,1769255432045,-951.09995283,0.00011878,2]
[403184807,1769255432056,-810.9975999,0.00011878,2]
[403184808,1769255432099,-1186.5106101,0.00011878,2]
[403184809,1769255432110,-1068.45853522,0.00011878,2]
[403184810,1769255432122,-310.4799,0.00011878,2]
[403184811,1769255432206,-815.82400348,0.00011878,2]
[403184812,1769255432218,-594.61795665,0.00011878,2]
[403184813,1769255432229,-271.414428,0.00011878,2]
[403184814,1769255432258,-462.1300956,0.00011878,2]
[403184815,1769255432269,-1075.43,0.00011878,2]
[403184816,1769255432280,-869.56,0.00011878,2]
[403184817,1769255432291,-69303.3761645,0.00011878,2]
[403184848,1769255438202,-10488.30613172,0.00011878,2]
[403184849,1769255438214,-17785.83770818,0.00011878,2]
[403184850,1769255438256,-695.28,0.00011878,2]
[403184851,1769255438311,-584.26742343,0.00011878,2]
[403184928,1769255440146,-5537.36,0.00011878,2]
[403184929,1769255440199,-378.66,0.00011878,2]
[403184930,1769255440216,-7677.89614001,0.00011878,2]
[403184931,1769255440252,-504.34826858,0.00011878,2]
[403184932,1769255440264,-625.43860482,0.00011878,2]
[403184933,1769255440275,-783314.79926901,0.00011878,2]
[403184934,1769255440284,-247.0,0.00011878,2]
[403184935,1769255440294,-300.0,0.00012078,2]
[403184936,1769255440303,-200.0,0.00012078,2]
[403184937,1769255440312,-1000.0,0.00012178,2]
[403184938,1769255440322,-200.0,0.00012199,2]
[403184939,1769255440332,-9999.99,0.00012199,2]
[403184940,1769255440341,-200.0,0.00012321,2]
[403184941,1769255440350,-166.66,0.00012339,2]
[403184942,1769255440359,-8590.01,0.00012407,2]
[403184943,1769255440368,-200.0,0.00012444,2]
[403184944,1769255440379,-327.52453111,0.00012552,2]
[403184945,1769255440390,-166.66,0.00012598,2]
[403184946,1769255440401,-345.39542338,0.00012624,2]
[403184947,1769255440410,-200.0,0.00012626,2]
[403184948,1769255440419,-9793.1796502,0.00012636,2]
[403184949,1769255440429,-236.0,0.00012678,2]
[403184950,1769255440439,-529.0,0.00012704,2]
[403184951,1769255440449,-228.0,0.00012704,2]
[403184952,1769255440459,-274.11896166,0.00012724,2]
[403184953,1769255440468,-350.60218053,0.00012824,2]
[403184954,1769255440477,-196.12,0.00012846,2]
[403184955,1769255440487,-166.66,0.00012858,2]
[403184956,1769255440496,-196.12,0.00012873,2]
[403184957,1769255440505,-196.12,0.000129,2]
[403184958,1769255440515,-196.12,0.00012927,2]
[403184959,1769255440524,-196.12,0.00012954,2]
[403184960,1769255440533,-157.0,0.00012971,2]
[403184961,1769255440542,-196.12,0.00012981,2]
[403184962,1769255440551,-196.12,0.00013008,2]
[403184963,1769255440561,-196.12,0.00013035,2]
[403184964,1769255440570,-420.0,0.00013039,2]
[403184965,1769255440580,-255.0,0.00013055,2]
[403184966,1769255440590,-196.12,0.00013062,2]
[403184967,1769255440599,-1680.0,0.00013064,2]
[403184968,1769255440615,-250.0,0.00013065,2]
[403184969,1769255440624,-300.0,0.00013065,2]
[403184970,1769255440634,-196.12,0.00013089,2]
[403184971,1769255440644,-500.0,0.00013108,2]
[403184972,1769255440653,-150.08724192,0.00013108,2]
[403184973,1769255440662,-196.12,0.00013116,2]
[403184974,1769255440672,-166.66,0.00013118,2]
[403184975,1769255440681,-196.12,0.00013143,2]
[403184976,1769255440690,-327.0,0.00013148,2]
[403184977,1769255440700,-196.12,0.0001317,2]
[403184978,1769255440709,-200.0,0.00013174,2]
[403184979,1769255440719,-250.0,0.00013175,2]
[403184980,1769255440728,-448.16559277,0.00013175,2]
[403184981,1769255440739,-300.0,0.00013175,2]
[403184982,1769255440750,-194.82973596,0.00013175,2]
[403184983,1769255440759,-500.0,0.00013175,2]
[403184984,1769255440768,-196.12,0.00013197,2]
[403184985,1769255440777,-196.12,0.00013224,2]
[403184986,1769255440788,-196.12,0.00013251,2]
[403184987,1769255440803,-196.12,0.00013279,2]
[403184988,1769255440815,-150.0,0.00013282,2]
[403184989,1769255440826,-150.0,0.00013282,2]
[403184990,1769255440836,-500.0,0.00013282,2]
[403184991,1769255440845,-150.0,0.00013282,2]
[403184992,1769255440854,-250.0,0.00013285,2]
[403184993,1769255440864,-300.0,0.00013285,2]
[403184994,1769255440873,-9793.1796502,0.00013294,2]
[403184995,1769255440882,-196.12,0.00013306,2]
[403184996,1769255440893,-196.12,0.00013333,2]
[403184997,1769255440903,-205.41720599,0.00013337,2]
[403184998,1769255440913,-215.96483373,0.00013337,2]
[403184999,1769255440924,-500.0,0.00013337,2]
[403185000,1769255440934,-250.0,0.00013337,2]
[403185001,1769255440944,-196.12,0.0001336,2]
[403185002,1769255440954,-166.66,0.00013378,2]
[403185003,1769255440965,-322.6107,0.00013383,2]
[403185004,1769255440976,-174.61919141,0.00013383,2]
[403185005,1769255440986,-209.40437684,0.00013383,2]
[403185006,1769255440997,-500.0,0.00013383,2]
[403185007,1769255441007,-578.20924308,0.00013383,2]
[403185008,1769255441018,-500.0,0.00013383,2]
[403185009,1769255441029,-500.0,0.00013383,2]
[403185010,1769255441039,-500.0,0.00013383,2]
[403185011,1769255441049,-500.0,0.00013383,2]
[403185012,1769255441059,-500.0,0.00013383,2]
[403185013,1769255441068,-500.0,0.00013383,2]
[403185014,1769255441078,-500.0,0.00013383,2]
[403185015,1769255441091,-743.50770149,0.00013383,2]
[403185016,1769255441100,-500.0,0.00013383,2]
[403185017,1769255441110,-500.0,0.00013383,2]
[403185018,1769255441119,-500.0,0.00013383,2]
[403185019,1769255441131,-250.0,0.00013383,2]
[403185020,1769255441140,-250.0,0.00013383,2]
[403185021,1769255441149,-250.0,0.00013383,2]
[403185022,1769255441163,-250.0,0.00013383,2]
[403185023,1769255441172,-721.12765535,0.00013383,2]
[403185024,1769255441181,-250.0,0.00013383,2]
[403185025,1769255441191,-266.11006595,0.00013383,2]
[403185026,1769255441200,-250.0,0.00013383,2]
[403185027,1769255441209,-250.0,0.00013383,2]
[403185028,1769255441218,-250.0,0.00013383,2]
[403185029,1769255441227,-250.0,0.00013383,2]
[403185030,1769255441236,-250.0,0.00013383,2]
[403185031,1769255441246,-263.33008425,0.00013383,2]
[403185032,1769255441256,-250.0,0.00013383,2]
[403185033,1769255441266,-250.0,0.00013383,2]
[403185034,1769255441275,-250.0,0.00013383,2]
[403185035,1769255441284,-250.0,0.00013383,2]
[403185036,1769255441293,-250.0,0.00013383,2]
[403185037,1769255441303,-250.0,0.00013383,2]
[403185038,1769255441312,-250.0,0.00013383,2]
[403185039,1769255441321,-250.0,0.00013383,2]
[403185040,1769255441331,-250.0,0.00013383,2]
[403185041,1769255441340,-250.0,0.00013383,2]
[403185042,1769255441350,-250.0,0.00013383,2]
[403185043,1769255441361,-500.0,0.00013383,2]
[403185044,1769255441370,-250.0,0.00013383,2]
[403185045,1769255441379,-151.0,0.00013383,2]
[403185046,1769255441389,-500.0,0.00013383,2]
[403185047,1769255441398,-250.0,0.00013383,2]
[403185048,1769255441407,-151.0,0.00013383,2]
[403185049,1769255441416,-500.0,0.00013383,2]
[403185050,1769255441426,-151.0,0.00013383,2]
[403185051,1769255441435,-250.0,0.00013383,2]
[403185052,1769255441444,-500.0,0.00013383,2]
[403185053,1769255441454,-151.0,0.00013383,2]
[403185054,1769255441463,-250.0,0.00013383,2]
[403185055,1769255441472,-500.0,0.00013383,2]
[403185056,1769255441481,-151.0,0.00013383,2]
[403185057,1769255441490,-250.0,0.00013383,2]
[403185058,1769255441499,-500.0,0.00013383,2]
[403185059,1769255441508,-151.0,0.00013383,2]
[403185060,1769255441518,-250.0,0.00013383,2]
[403185061,1769255441897,-151.0,0.00013383,2]
[403185062,1769255441907,-500.0,0.00013383,2]
[403185063,1769255441917,-250.0,0.00013383,2]
[403185064,1769255441929,-151.0,0.00013383,2]
[403185065,1769255441939,-500.0,0.00013383,2]
[403185066,1769255441950,-250.0,0.00013383,2]
[403185067,1769255441959,-151.0,0.00013383,2]
[403185068,1769255441968,-500.0,0.00013383,2]
[403185069,1769255441977,-151.0,0.00013383,2]
[403185070,1769255441986,-500.0,0.00013383,2]
[403185071,1769255441996,-854.2589148,0.00013383,2]
[403185072,1769255442005,-151.0,0.00013383,2]
[403185073,1769255442014,-500.0,0.00013383,2]
[403185074,1769255442023,-500.0,0.00013383,2]
[403185075,1769255442032,-500.0,0.00013383,2]
[403185076,1769255442041,-500.0,0.00013383,2]
[403185077,1769255442051,-500.0,0.00013383,2]
[403185078,1769255442059,-500.0,0.00013383,2]
[403185079,1769255442069,-500.0,0.00013383,2]
[403185080,1769255442080,-500.0,0.00013383,2]
[403185081,1769255442090,-500.0,0.00013383,2]
[403185082,1769255442099,-500.0,0.00013383,2]
[403185083,1769255442108,-500.0,0.00013383,2]
[403185084,1769255442118,-500.0,0.00013383,2]
[403185085,1769255442128,-500.0,0.00013383,2]
[403185086,1769255442137,-500.0,0.00013383,2]
[403185087,1769255442146,-500.0,0.00013383,2]
[403185088,1769255442156,-500.0,0.00013383,2]
[403185089,1769255442165,-500.0,0.00013383,2]
[403185090,1769255442174,-500.0,0.00013383,2]
[403185091,1769255442183,-500.0,0.00013383,2]
[403185092,1769255442192,-500.0,0.00013383,2]
[403185093,1769255442201,-500.0,0.00013383,2]
[403185094,1769255442211,-500.0,0.00013383,2]
[403185095,1769255442220,-500.0,0.00013383,2]
[403185096,1769255442228,-1194.86,0.00013383,2]
[403185097,1769255442238,-493.25248034,0.00013392,2]
[403185098,1769255442247,-165.57934007,0.00013456,2]
[403185099,1769255442257,-216.92,0.00013558,2]
[403185100,1769255442265,-274.11896161,0.00013587,2]
[403185101,1769255442274,-424.0,0.00013627,2]
[403185102,1769255442283,-166.66,0.00013637,2]
[403185103,1769255442292,-1194.86,0.00013657,2]
[403185104,1769255442300,-350.60218053,0.0001367,2]
[403185105,1769255442310,-500.0,0.00013698,2]
[403185106,1769255442319,-500.0,0.00013698,2]
[403185107,1769255442327,-500.0,0.00013698,2]
[403185108,1769255442337,-500.0,0.00013698,2]
[403185109,1769255442345,-636.91,0.00013698,2]
[403185110,1769255442354,-500.0,0.00013698,2]
[403185111,1769255442363,-500.0,0.00013698,2]
[403185112,1769255442372,-500.0,0.00013698,2]
[403185113,1769255442381,-500.0,0.00013698,2]
[403185114,1769255442390,-171.84070592,0.00013699,3]
[403185115,1769255442399,-202.03058125,0.00013699,3]
[403185116,1769255442408,-150.07696773,0.00013699,3]
[403185117,1769255442417,-710.83,0.00013699,2]
[403185118,1769255442426,-2084.02,0.00013699,2]
[403185119,1769255442436,-500.0,0.00013699,2]
[403185120,1769255442445,-500.0,0.00013699,2]
[403185121,1769255442454,-500.0,0.00013699,2]
[403185122,1769255442463,-513.25535788,0.00013699,2]
[403185123,1769255442472,-500.0,0.00013699,2]
[403185124,1769255442481,-500.0,0.00013699,2]
[403185125,1769255442490,-500.0,0.00013699,2]
[403185126,1769255442499,-246.52406605,0.00013722,2]
[403185127,1769255442508,-1600.0,0.00013872,2]
[403185128,1769255442517,-3945.06,0.00013902,2]
[403185129,1769255442527,-181.08010149,0.00013931,2]
[403185130,1769255442536,-217.15233878,0.00013931,2]
[403185131,1769255442545,-323.07684382,0.00013931,2]
[403185132,1769255442555,-885.86649465,0.00013931,2]
[403185133,1769255442564,-1194.86,0.00013931,2]
[403185134,1769255442574,-9793.1796502,0.00013952,2]
[403185135,1769255442583,-1194.86,0.00014205,2]
[403185136,1769255442592,-433.0,0.00014229,2]
[403185137,1769255442601,-587.0,0.00014316,2]
[403185138,1769255442611,-2351.0,0.00014371,2]
[403185139,1769255442620,-16197.82,0.00014371,2]
[403185140,1769255442629,-274.11896161,0.00014449,2]
[403185141,1769255442638,-187.78006525,0.00014479,2]
[403185142,1769255442647,-225.18697532,0.00014479,2]
[403185143,1769255442657,-1194.86,0.00014479,2]
[403185144,1769255442666,-9999.99,0.00014504,2]
[403185145,1769255442675,-182.74,0.00014504,2]
[403185146,1769255442684,-37000.92,0.00014504,2]
[403185147,1769255442693,-150.99,0.00014504,2]
[403185148,1769255442701,-350.60218053,0.00014516,2]
[403185149,1769255442710,-9793.1796502,0.0001461,2]
[403185150,1769255442719,-5967.8585439,0.000147,2]
[403185151,1769255442729,-334.5472959,0.00014752,2]
[403185152,1769255442738,-1194.86,0.00014753,2]
[403185153,1769255442747,-150.0,0.00014875,2]
[403185154,1769255442757,-150.0,0.00014875,2]
[403185155,1769255442767,-150.0,0.00014875,2]
[403185156,1769255442776,-200.85753101,0.00014875,2]
[403185157,1769255442785,-150.0,0.00014875,2]
[403185158,1769255442794,-150.0,0.00014875,2]
[403185159,1769255442803,-500.0,0.00014875,2]
[403185160,1769255442814,-150.0,0.00014875,2]
[403185161,1769255442823,-150.0,0.0001493,2]
[403185162,1769255442832,-150.0,0.0001493,2]
[403185163,1769255442841,-175.63030324,0.0001493,2]
[403185164,1769255442850,-150.0,0.0001493,2]
[403185166,1769255442859,-500.0,0.0001493,2]
[403185167,1769255442868,-1000.0,0.00014965,2]
[403185168,1769255442877,-150.0,0.00014985,2]
[403185169,1769255442886,-150.0,0.00014985,2]
[403185170,1769255442895,-200.0,0.00014985,2]
[403185171,1769255442904,-500.0,0.00014985,2]
[403185172,1769255442913,-194.72792766,0.00015027,2]
[403185173,1769255442922,-181.14462682,0.00015027,2]
[403185174,1769255442931,-1194.86,0.00015027,2]
[403185175,1769255442941,-200.0,0.00015039,2]
[403185176,1769255442950,-150.0,0.00015039,2]
[403185177,1769255442959,-500.0,0.00015039,2]
[403185178,1769255442967,-290.22964713,0.00015094,2]
[403185179,1769255442976,-500.0,0.00015094,2]
[403185180,1769255442985,-365.7708818,0.00015149,2]
[403185181,1769255442994,-345.39542337,0.00015233,2]
[403185182,1769255443003,-9793.1796502,0.00015268,2]
[403185183,1769255443012,-1331.6092326,0.00015289,2]
[403185185,1769255443021,-1194.92,0.00015301,2]
[403185186,1769255443030,-274.11896161,0.00015312,2]
[403185187,1769255443040,-152.0,0.00015313,3]
[403185188,1769255443049,-500.0,0.00015315,2]
[403185189,1769255443058,-151.0,0.00015324,2]
[403185190,1769255443067,-151.0,0.0001533,2]
[403185191,1769255443077,-151.0,0.0001534,2]
[403185192,1769255443089,-350.60218053,0.00015362,2]
[403185193,1769255443098,-1002.67929229,0.00015567,2]
[403185194,1769255443107,-201.93286099,0.00015575,2]
[403185195,1769255443116,-1600.0,0.00015606,2]
[403185197,1769255443126,-250.0,0.00015694,2]
[403185198,1769255443135,-823.0,0.00015718,2]
[403185199,1769255443144,-3292.0,0.00015808,2]
[403185201,1769255443155,-500.0,0.00015872,2]
[403185202,1769255443164,-500.0,0.00015873,2]
[403185203,1769255443172,-500.0,0.00015873,2]
[403185204,1769255443181,-500.0,0.00015873,2]
[403185205,1769255443190,-500.0,0.00015873,2]
[403185206,1769255443199,-500.0,0.00015873,2]
[403185207,1769255443208,-500.0,0.00015873,2]
[403185208,1769255443217,-502.29619989,0.00015873,2]
[403185209,1769255443227,-500.0,0.00015873,2]
[403185210,1769255443237,-500.0,0.00015873,2]
[403185211,1769255443247,-500.62373681,0.00015873,2]
[403185212,1769255443257,-500.0,0.00015873,2]
[403185213,1769255443266,-500.0,0.00015873,2]
[403185214,1769255443275,-500.0,0.00015873,2]
[403185215,1769255443284,-500.0,0.00015873,2]
[403185216,1769255443295,-500.0,0.00015873,2]
[403185217,1769255443305,-313.95514595,0.00015873,2]
[403185218,1769255443315,-500.0,0.00015873,2]
[403185219,1769255443326,-500.0,0.00015873,2]
[403185220,1769255443336,-500.0,0.00015873,2]
[403185221,1769255443345,-501.64063566,0.00015873,2]
[403185222,1769255443354,-166.08381347,0.00015873,2]
[403185223,1769255443363,-501.00143477,0.00015873,2]
[403185224,1769255443372,-500.0,0.00015873,2]
[403185225,1769255443381,-501.35548304,0.00015873,2]
[403185226,1769255443390,-500.0,0.00015873,2]
[403185227,1769255443399,-1852.42,0.00015885,2]
[403185228,1769255443408,-9793.1796502,0.00015926,2]
[403185229,1769255443417,-635.76080296,0.0001596,2]
[403185230,1769255443427,-216.92,0.00016041,2]
[403185231,1769255443437,-346.92554585,0.00016121,2]
[403185232,1769255443447,-599.60298507,0.00016122,2]
[403185233,1769255443457,-721.12765535,0.00016122,2]
[403185234,1769255443467,-209.40437684,0.00016123,2]
[403185235,1769255443477,-274.11896161,0.00016175,2]
[403185236,1769255443487,-350.60218053,0.00016208,2]
[403185237,1769255443496,-2972.57,0.00016276,2]
[403185238,1769255443507,-152.0,0.00016313,4]
[403185239,1769255443517,-1102.0,0.00016345,2]
[403185240,1769255443526,-500.0,0.00016356,2]
[403185241,1769255443536,-500.0,0.00016356,2]
[403185242,1769255443545,-1001.80734067,0.00016421,2]
[403185243,1769255443554,-170.62003131,0.00016421,2]
[403185244,1769255443563,-1097.63046091,0.00016421,2]
[403185245,1769255443572,-502.78879497,0.00016421,2]
[403185246,1769255443582,-1005.95943746,0.00016421,2]
[403185247,1769255443591,-292.86388149,0.00016421,2]
[403185249,1769255443600,-1068.24864212,0.00016421,2]
[403185251,1769255443609,-1000.0,0.00016421,2]
[403185252,1769255443619,-1000.0,0.00016421,2]
[403185253,1769255443628,-502.29589006,0.00016421,2]
[403185254,1769255443637,-1000.0,0.00016421,2]
[403185255,1769255443645,-1000.0,0.00016421,2]
[403185256,1769255443654,-1000.0,0.00016421,2]
[403185257,1769255443663,-1000.0,0.00016421,2]
[403185258,1769255443672,-502.47348302,0.00016421,2]
[403185259,1769255443681,-1000.0,0.00016421,2]
[403185260,1769255443690,-1000.0,0.00016421,2]
[403185261,1769255443699,-1000.0,0.00016421,2]
[403185262,1769255443708,-214.96623226,0.00016428,2]
[403185263,1769255443717,-216.90873386,0.00016429,2]
[403185264,1769255443726,-500.0,0.00016438,2]
[403185265,1769255443735,-500.0,0.00016438,2]
[403185266,1769255443744,-500.0,0.00016438,2]
[403185267,1769255443753,-500.0,0.00016438,2]
[403185268,1769255443763,-500.0,0.00016438,2]
[403185269,1769255443777,-500.0,0.00016438,2]
[403185270,1769255443786,-500.0,0.00016438,2]
[403185271,1769255443795,-500.0,0.00016438,2]
[403185272,1769255443804,-500.0,0.00016438,2]
[403185273,1769255443814,-500.0,0.00016438,2]
[403185274,1769255443823,-500.0,0.00016438,2]
[403185275,1769255443831,-500.0,0.00016438,2]
[403185276,1769255443841,-500.0,0.00016438,2]
[403185277,1769255443850,-500.0,0.00016438,2]